fUST/lending_fUST_20240525
["ID","MTS","AMOUNT","RATE_DAILY","PERIOD"]
[327891122,1716581446399,-151.0,0.00027397,2]
[327891123,1716581446408,-500.0,0.00027397,12]
[327891124,1716581446418,-151.0,0.00027397,2]
[327891125,1716581446427,-151.0,0.00027397,2]
[327891126,1716581446437,-500.0,0.00027397,12]
[327891127,1716581446446,-500.0,0.00027397,12]
[327891128,1716581446455,-943.45,0.00027397,12]
[327891129,1716581446465,-365.45538699,0.00027397,12]
[327891130,1716581446474,-500.0,0.00027397,12]
[327891131,1716581446484,-500.0,0.00027397,12]
[327891132,1716581446494,-2323.41,0.00027397,12]
[327891133,1716581446504,-500.0,0.00027397,12]
[327891134,1716581446513,-2691.58,0.00027397,12]
[327891135,1716581446525,-500.0,0.00027397,12]
[327891136,1716581446535,-855.89,0.00027397,12]
[327891137,1716581446544,-2852.15,0.00027397,12]
[327891138,1716581446554,-153.405585,0.00027397,2]
[327891139,1716581446563,-207.15,0.00027397,12]
[327891140,1716581446573,-151.0,0.00027397,2]
[327891141,1716581446582,-500.0,0.00027397,12]
[327891142,1716581446591,-399.919296,0.00027397,2]
[327891143,1716581446601,-500.0,0.00027397,12]
[327891144,1716581446610,-399.919296,0.00027397,2]
[327891145,1716581446620,-500.0,0.00027397,12]
[327891146,1716581446630,-500.0,0.00027397,12]
[327891147,1716581446639,-296.100628,0.00027397,2]
[327891148,1716581446648,-400.0,0.00027397,7]
[327891149,1716581446658,-891.83346668,0.00027433,2]
[327891150,1716581446667,-500.0,0.00027671,13]
[327891151,1716581446677,-153.74406954,0.00027671,13]
[327891152,1716581446687,-500.0,0.00027671,13]
[327891153,1716581446696,-500.0,0.00027671,13]
[327891154,1716581446705,-500.0,0.00027671,13]
[327891155,1716581446715,-500.0,0.00027671,13]
[327891156,1716581446724,-500.0,0.00027671,13]
[327891157,1716581446735,-466.25,0.00027671,13]
[327891158,1716581446745,-500.0,0.00027671,13]
[327891159,1716581446754,-563.68,0.00027671,13]
[327891160,1716581446763,-500.0,0.00027671,13]
[327891161,1716581446773,-545.31,0.00027671,13]
[327891162,1716581446785,-500.0,0.00027671,13]
[327891163,1716581446794,-500.0,0.00027671,13]
[327891164,1716581446805,-500.0,0.00027671,13]
[327891165,1716581446815,-500.0,0.00027671,13]
[327891166,1716581446824,-500.0,0.00027671,13]
[327891167,1716581446834,-983.42,0.00027671,13]
[327891168,1716581446843,-500.0,0.00027671,13]
[327891169,1716581446854,-500.0,0.00027671,13]
[327891170,1716581446863,-500.0,0.00027671,13]
[327891171,1716581446873,-943.45,0.00027671,13]
[327891172,1716581446884,-500.0,0.00027671,13]
[327891173,1716581446893,-500.0,0.00027671,13]
[327891174,1716581446904,-2323.41,0.00027671,13]
[327891175,1716581446914,-360.97565246,0.00027671,13]
[327891176,1716581446924,-2691.58,0.00027671,13]
[327891177,1716581446934,-500.0,0.00027671,13]
[327891178,1716581446944,-855.89,0.00027671,13]
[327891179,1716581446955,-2852.15,0.00027671,13]
[327891180,1716581446965,-302.98094965,0.00027671,13]
[327891181,1716581446976,-500.0,0.00027671,13]
[327891182,1716581446986,-500.0,0.00027671,13]
[327891183,1716581446995,-500.0,0.00027671,13]
[327891184,1716581447005,-150.81901718,0.00027786,2]
[327891185,1716581447015,-500.0,0.00027945,14]
[327891186,1716581447029,-638.67,0.00027945,14]
[327891187,1716581447039,-500.0,0.00027945,14]
[327891188,1716581447048,-500.0,0.00027945,14]
[327891189,1716581447058,-500.0,0.00027945,14]
[327891190,1716581447067,-500.0,0.00027945,14]
[327891191,1716581447077,-500.0,0.00027945,14]
[327891192,1716581447087,-151.0,0.00027945,2]
[327891193,1716581447097,-563.68,0.00027945,14]
[327891194,1716581447108,-290.86612,0.00027945,2]
[327891195,1716581447117,-290.86612,0.00027945,2]
[327891196,1716581447127,-151.0,0.00027945,2]
[327891197,1716581447137,-151.0,0.00027945,2]
[327891198,1716581447146,-151.0,0.00027945,2]
[327891199,1716581447156,-151.0,0.00027945,2]
[327891200,1716581447167,-151.0,0.00027945,2]
[327891201,1716581447177,-500.0,0.00027945,14]
[327891202,1716581447187,-545.31,0.00027945,14]
[327891203,1716581447196,-351.35,0.00027945,14]
[327891204,1716581447206,-500.0,0.00027945,14]
[327891205,1716581447327,-500.0,0.00027945,14]
[327891206,1716581447338,-500.0,0.00027945,14]
[327891207,1716581447347,-500.0,0.00027945,14]
[327891208,1716581447357,-983.42,0.00027945,14]
[327891209,1716581447367,-500.0,0.00027945,14]
[327891210,1716581447378,-500.0,0.00027945,14]
[327891211,1716581447388,-500.0,0.00027945,14]
[327891212,1716581447398,-943.45,0.00027945,14]
[327891213,1716581447407,-436.7,0.00027945,14]
[327891214,1716581447417,-459.82,0.00027945,14]
[327891215,1716581447427,-151.0,0.00027945,2]
[327891216,1716581447437,-2323.41,0.00027945,14]
[327891217,1716581447447,-151.0,0.00027945,2]
[327891218,1716581447456,-2691.58,0.00027945,14]
[327891219,1716581447467,-500.0,0.00027945,14]
[327891220,1716581447477,-208.038206,0.00027945,2]
[327891221,1716581447486,-855.89,0.00027945,14]
[327891222,1716581447496,-2852.15,0.00027945,14]
[327891223,1716581447506,-500.0,0.00027945,14]
[327891224,1716581447515,-500.0,0.00027945,14]
[327891225,1716581447526,-500.0,0.00027945,14]
[327891226,1716581447536,-221.76141425,0.00028,2]
[327891227,1716581447548,-868.98491859,0.00028084,2]
[327891228,1716581447557,-868.98491859,0.00028094,2]
[327891229,1716581447567,-868.98491859,0.00028122,2]
[327891230,1716581447576,-868.98491859,0.00028212,2]
[327891231,1716581447585,-500.0,0.00028219,15]
[327891232,1716581447594,-500.0,0.00028219,15]
[327891233,1716581447603,-640.86,0.00028219,15]
[327891234,1716581447612,-231.87,0.00028219,15]
[327891235,1716581447622,-500.0,0.00028219,15]
[327891236,1716581447631,-500.0,0.00028219,15]
[327891237,1716581447641,-563.68,0.00028219,15]
[327891238,1716581447650,-451.95,0.00028219,15]
[327891239,1716581447660,-545.31,0.00028219,15]
[327891240,1716581447669,-500.0,0.00028219,15]
[327891241,1716581447679,-500.0,0.00028219,15]
[327891242,1716581447688,-500.0,0.00028219,15]
[327891243,1716581447697,-500.0,0.00028219,15]
[327891244,1716581447707,-983.42,0.00028219,15]
[327891245,1716581447716,-500.0,0.00028219,15]
[327891246,1716581447725,-500.0,0.00028219,15]
[327891247,1716581447735,-500.0,0.00028219,15]
[327891248,1716581447744,-943.45,0.00028219,15]
[327891249,1716581447755,-2323.41,0.00028219,15]
[327891250,1716581447767,-2691.58,0.00028219,15]
[327891251,1716581447778,-500.0,0.00028219,15]
[327891252,1716581447787,-855.89,0.00028219,15]
[327891253,1716581447796,-2852.15,0.00028219,15]
[327891254,1716581447805,-325.7,0.00028219,15]
[327891255,1716581447815,-500.0,0.00028219,15]
[327891256,1716581447825,-500.0,0.00028219,15]
[327891257,1716581447834,-2656.379159,0.00028228,2]
[327891258,1716581447843,-152.71459282,0.00028292,2]
[327891259,1716581447853,-500.0,0.00028493,16]
[327891260,1716581447863,-500.0,0.00028493,16]
[327891261,1716581447872,-151.0,0.00028493,2]
[327891263,1716581447881,-216.299291,0.00028493,2]
[327891265,1716581447890,-151.0,0.00028493,2]
[327891267,1716581447900,-151.0,0.00028493,2]
[327891269,1716581447909,-151.0,0.00028493,2]
[327891271,1716581447918,-500.0,0.00028493,16]
[327891273,1716581447927,-500.0,0.00028493,16]
[327891274,1716581447937,-563.68,0.00028493,16]
[327891275,1716581447946,-545.31,0.00028493,16]
[327891276,1716581447956,-500.0,0.00028493,16]
[327891277,1716581447965,-500.0,0.00028493,16]
[327891278,1716581447975,-500.0,0.00028493,16]
[327891279,1716581447986,-500.0,0.00028493,16]
[327891280,1716581447995,-983.42,0.00028493,16]
[327891282,1716581448005,-500.0,0.00028493,16]
[327891284,1716581448015,-500.0,0.00028493,16]
[327891285,1716581448024,-500.0,0.00028493,16]
[327891286,1716581448035,-943.45,0.00028493,16]
[327891287,1716581448044,-2323.41,0.00028493,16]
[327891288,1716581448053,-2691.58,0.00028493,16]
[327891289,1716581448062,-500.0,0.00028493,16]
[327891291,1716581448072,-855.89,0.00028493,16]
[327891293,1716581448082,-2852.15,0.00028493,16]
[327891294,1716581448092,-335.23,0.00028493,16]
[327891295,1716581448101,-151.0,0.00028493,2]
[327891296,1716581448111,-259.36149527,0.00028493,16]
[327891297,1716581448120,-151.0,0.00028493,2]
[327891298,1716581448129,-152.71459282,0.00028703,2]
[327891299,1716581448139,-500.0,0.00028767,17]
[327891300,1716581448148,-500.0,0.00028767,17]
[327891302,1716581448157,-500.0,0.00028767,17]
[327891303,1716581448166,-525.28,0.00028767,17]
[327891304,1716581448177,-295.692901,0.00028767,2]
[327891305,1716581448187,-295.692901,0.00028767,2]
[327891307,1716581448196,-151.0,0.00028767,2]
[327891309,1716581448206,-157.898362,0.00028767,2]
[327891310,1716581448220,-151.0,0.00028767,2]
[327891311,1716581448230,-151.0,0.00028767,2]
[327891312,1716581448239,-563.68,0.00028767,17]
[327891313,1716581448249,-1417.180554,0.00028767,2]
[327891315,1716581448260,-1417.180554,0.00028767,2]
[327891316,1716581448270,-545.31,0.00028767,17]
[327891317,1716581448281,-500.0,0.00028767,17]
[327891318,1716581448292,-500.0,0.00028767,17]
[327891319,1716581448302,-500.0,0.00028767,17]
[327891320,1716581448312,-500.0,0.00028767,17]
[327891321,1716581448321,-983.42,0.00028767,17]
[327891322,1716581448330,-500.0,0.00028767,17]
[327891323,1716581448341,-500.0,0.00028767,17]
[327891324,1716581448351,-500.0,0.00028767,17]
[327891325,1716581448360,-943.45,0.00028767,17]
[327891326,1716581448370,-2323.41,0.00028767,17]
[327891327,1716581448379,-2691.58,0.00028767,17]
[327891328,1716581448390,-500.0,0.00028767,17]
[327891329,1716581448399,-855.89,0.00028767,17]
[327891330,1716581448408,-2852.15,0.00028767,17]
[327891331,1716581448418,-868.98491859,0.00028778,2]
[327891332,1716581448428,-868.98491859,0.00028824,2]
[327891333,1716581448437,-165.09678267,0.00028858,2]
[327891335,1716581448447,-152.71459282,0.0002889,2]
[327891337,1716581448456,-152.71459282,0.00028896,2]
[327891338,1716581448465,-556.46473181,0.000289,2]
[327891339,1716581448475,-152.71459282,0.00028915,2]
[327891340,1716581448484,-868.98491859,0.00028959,2]
[327891341,1716581448493,-291.6248309,0.0002899,2]
[327891342,1716581448503,-2000.0,0.0002904,2]
[327891343,1716581448512,-352.42,0.00029041,18]
[327891344,1716581448521,-500.0,0.00029041,18]
[327891345,1716581448533,-210.08787271,0.00029041,18]
[327891346,1716581448543,-563.68,0.00029041,18]
[327891347,1716581448553,-545.31,0.00029041,18]
[327891348,1716581448563,-500.0,0.00029041,18]
[327891349,1716581448572,-500.0,0.00029041,18]
[327891350,1716581448582,-637.69,0.00029041,18]
[327891351,1716581448591,-500.0,0.00029041,18]
[327891352,1716581448601,-983.42,0.00029041,18]
[327891353,1716581448610,-500.0,0.00029041,18]
[327891354,1716581448620,-500.0,0.00029041,18]
[327891355,1716581448630,-500.0,0.00029041,18]
[327891356,1716581448639,-943.45,0.00029041,18]
[327891357,1716581448649,-2323.41,0.00029041,18]
[327891358,1716581448658,-2691.58,0.00029041,18]
[327891359,1716581448669,-500.0,0.00029041,18]
[327891360,1716581448679,-855.89,0.00029041,18]
[327891361,1716581448689,-2852.15,0.00029041,18]
[327891362,1716581448699,-152.65713131,0.00029052,2]
[327891363,1716581448709,-868.98491859,0.00029079,2]
[327891364,1716581448719,-868.98491859,0.0002918,2]
[327891365,1716581448728,-500.0,0.00029315,19]
[327891366,1716581448738,-563.68,0.00029315,19]
[327891367,1716581448747,-545.31,0.00029315,19]
[327891368,1716581448757,-500.0,0.00029315,19]
[327891369,1716581448767,-500.0,0.00029315,19]
[327891370,1716581448778,-213.98,0.00029315,19]
[327891371,1716581448787,-983.42,0.00029315,19]
[327891372,1716581448796,-500.0,0.00029315,19]
[327891373,1716581448806,-500.0,0.00029315,19]
[327891374,1716581448815,-500.0,0.00029315,19]
[327891375,1716581448825,-943.45,0.00029315,19]
[327891376,1716581448835,-2323.41,0.00029315,19]
[327891377,1716581448845,-2691.58,0.00029315,19]
[327891378,1716581448855,-500.0,0.00029315,19]
[327891379,1716581448865,-855.89,0.00029315,19]
[327891380,1716581448874,-2852.15,0.00029315,19]
[327891381,1716581448884,-868.98491859,0.00029425,2]
[327891382,1716581448894,-868.98491859,0.00029492,2]
[327891383,1716581448903,-868.98491859,0.00029564,2]
[327891384,1716581448913,-500.0,0.00029589,20]
[327891385,1716581448923,-563.68,0.00029589,20]
[327891386,1716581448932,-545.31,0.00029589,20]
[327891387,1716581448942,-500.0,0.00029589,20]
[327891388,1716581448951,-500.0,0.00029589,20]
[327891389,1716581448961,-151.0,0.00029589,2]
[327891390,1716581448971,-151.0,0.00029589,2]
[327891391,1716581448980,-207.577169,0.00029589,2]
[327891392,1716581448990,-151.0,0.00029589,2]
[327891393,1716581449000,-207.577169,0.00029589,2]
[327891394,1716581449010,-151.0,0.00029589,2]
[327891395,1716581449023,-983.42,0.00029589,20]
[327891396,1716581449036,-151.0,0.00029589,2]
[327891397,1716581449046,-309.47594837,0.00029589,20]
[327891398,1716581449055,-151.0,0.00029589,2]
[327891399,1716581449064,-151.0,0.00029589,2]
[327891400,1716581449074,-500.0,0.00029589,20]
[327891401,1716581449084,-500.0,0.00029589,20]
[327891402,1716581449094,-943.45,0.00029589,20]
[327891403,1716581449104,-2323.41,0.00029589,20]
[327891404,1716581449114,-2691.58,0.00029589,20]
[327891405,1716581449124,-621.24480575,0.00029589,20]
[327891406,1716581449133,-855.89,0.00029589,20]
[327891407,1716581449143,-2852.15,0.00029589,20]
[327891408,1716581449153,-306.0,0.00029607,2]
[327891409,1716581449162,-868.98491859,0.00029637,2]
[327891410,1716581449172,-868.98491859,0.00029667,2]
[327891411,1716581449181,-868.98491859,0.00029693,2]
[327891412,1716581449190,-153.0,0.0002974,2]
[327891413,1716581449200,-153.0,0.0002974,2]
[327891414,1716581449210,-868.98491859,0.00029756,2]
[327891415,1716581449224,-399.919296,0.00029756,2]
[327891416,1716581449234,-399.919296,0.00029756,2]
[327891417,1716581449243,-296.100628,0.00029756,2]
[327891418,1716581449254,-165.09678267,0.00029831,2]
[327891419,1716581449263,-500.0,0.00029863,21]
[327891420,1716581449273,-563.68,0.00029863,21]
[327891421,1716581449285,-545.31,0.00029863,21]
[327891422,1716581449297,-500.0,0.00029863,21]
[327891423,1716581449306,-500.0,0.00029863,21]
[327891424,1716581449316,-983.42,0.00029863,21]
[327891425,1716581449326,-358.32812072,0.00029863,21]
[327891426,1716581449335,-500.0,0.00029863,21]
[327891427,1716581449345,-943.45,0.00029863,21]
[327891428,1716581449355,-2323.41,0.00029863,21]
[327891429,1716581449364,-2691.58,0.00029863,21]
[327891430,1716581449374,-855.89,0.00029863,21]
[327891431,1716581449383,-2852.15,0.00029863,21]
[327891432,1716581449394,-152.71459282,0.00029868,2]
[327891433,1716581449403,-165.09678267,0.000299,2]
[327891434,1716581449412,-156.3060521,0.0002994,2]
[327891435,1716581449422,-868.98491859,0.0002997,2]
[327891436,1716581449431,-2000.000001,0.0003,4]
[327891437,1716581449440,-18219.02878601,0.0003,2]
[327891438,1716581449450,-154.82968734,0.0003,4]
[327891439,1716581449459,-783.85662241,0.0003,4]
[327891440,1716581449469,-17243.67081528,0.0003,10]
[327891441,1716581449478,-1210.66841003,0.0003,3]
[327891442,1716581449487,-151.0,0.0003,2]
[327891443,1716581449496,-396.993281,0.0003,2]
[327891444,1716581449505,-396.993281,0.0003,2]
[327891445,1716581449515,-151.0,0.0003,2]
[327891446,1716581449524,-150.0,0.0003,2]
[327891447,1716581449539,-9666.1474191,0.0003,2]
[327891448,1716581449548,-151.0,0.0003,2]
[327891449,1716581449558,-151.0,0.0003,2]
[327891450,1716581449568,-857.32023,0.0003,2]
[327891451,1716581449577,-857.32023,0.0003,2]
[327891452,1716581449587,-1210.66841003,0.0003,3]
[327891453,1716581449596,-151.0,0.0003,2]
[327891454,1716581449605,-269.0,0.0003,2]
[327891455,1716581449615,-868.98491859,0.00030048,7]
[327891456,1716581449625,-500.0,0.00030136,22]
[327891457,1716581449635,-563.68,0.00030136,22]
[327891458,1716581449644,-290.86612,0.00030136,2]
[327891459,1716581449653,-290.86612,0.00030136,2]
[327891460,1716581449664,-151.0,0.00030136,2]
[327891461,1716581449674,-151.0,0.00030136,2]
[327891462,1716581449684,-151.0,0.00030136,2]
[327891463,1716581449694,-300.506226,0.00030136,2]
[327891464,1716581449704,-151.0,0.00030136,2]
[327891465,1716581449714,-545.31,0.00030136,22]
[327891466,1716581449723,-500.0,0.00030136,22]
[327891467,1716581449732,-496.28,0.00030136,22]
[327891468,1716581449743,-983.42,0.00030136,22]
[327891469,1716581449752,-500.0,0.00030136,22]
[327891470,1716581449761,-943.45,0.00030136,22]
[327891471,1716581449771,-2323.41,0.00030136,22]
[327891472,1716581449783,-2691.58,0.00030136,22]
[327891473,1716581449793,-855.89,0.00030136,21]
[327891474,1716581449802,-2852.15,0.00030136,22]
[327891475,1716581449811,-151.0,0.00030136,2]
[327891476,1716581449820,-3132.899824,0.00030137,2]
[327891477,1716581449829,-3132.899824,0.00030137,2]
[327891478,1716581449839,-3132.899824,0.00030137,2]
[327891479,1716581449848,-3132.899824,0.00030137,2]
[327891480,1716581449858,-3132.899824,0.00030137,2]
[327891481,1716581449867,-3132.899824,0.00030137,2]
[327891482,1716581449877,-868.98491859,0.00030222,7]
[327891483,1716581449886,-868.98491859,0.00030304,7]
[327891484,1716581449896,-402.592213,0.0003031,2]
[327891485,1716581449906,-868.98491859,0.00030341,7]
[327891486,1716581449915,-868.98491859,0.00030372,7]
[327891487,1716581449927,-318.07767926,0.0003041,23]
[327891488,1716581449936,-563.68,0.0003041,23]
[327891489,1716581449947,-545.31,0.0003041,23]
[327891490,1716581449957,-500.0,0.0003041,23]
[327891491,1716581449967,-983.42,0.0003041,23]
[327891492,1716581449976,-500.0,0.0003041,23]
[327891493,1716581449985,-943.45,0.0003041,23]
[327891494,1716581449996,-2323.41,0.0003041,23]
[327891495,1716581450005,-2691.58,0.0003041,23]
[327891496,1716581450015,-855.89,0.0003041,21]
[327891497,1716581450024,-2852.15,0.0003041,23]
[327891498,1716581450038,-150.0,0.00030411,2]
[327891499,1716581450047,-1505.98984285,0.00030461,3]
[327891500,1716581450161,-2842.5946484,0.00030497,30]
[327891501,1716581450171,-417.57091557,0.00030509,2]
[327891502,1716581450181,-291.6248309,0.00030576,2]
[327891503,1716581450190,-291.6248309,0.00030576,2]
[327891504,1716581450199,-499.7822124,0.00030576,2]
[327891505,1716581450212,-583.2496618,0.00030576,2]
[327891506,1716581450223,-4226.56801723,0.00030659,2]
[327891507,1716581450234,-563.68,0.00030684,24]
[327891508,1716581450244,-545.31,0.00030684,24]
[327891509,1716581450254,-369.21652864,0.00030684,24]
[327891510,1716581450264,-983.42,0.00030684,24]
[327891511,1716581450275,-500.0,0.00030684,24]
[327891512,1716581450287,-943.45,0.00030684,24]
[327891513,1716581450300,-2323.41,0.00030684,24]
[327891514,1716581450309,-2691.58,0.00030684,24]
[327891515,1716581450319,-855.89,0.00030684,21]
[327891516,1716581450328,-2852.15,0.00030684,24]
[327891517,1716581450338,-153.0,0.00030698,2]
[327891518,1716581450347,-281.0,0.000307,3]
[327891519,1716581450356,-152.71459282,0.00030839,7]
[327891520,1716581450365,-150.81901718,0.00030874,2]
[327891521,1716581450374,-250.19065122,0.00030874,2]
[327891522,1716581450383,-152.71459282,0.00030888,7]
[327891523,1716581450392,-868.98491859,0.00030955,7]
[327891524,1716581450402,-154.99706553,0.00030958,4]
[327891525,1716581450411,-385.87365126,0.00030958,2]
[327891526,1716581450420,-563.79,0.00030958,25]
[327891527,1716581450429,-545.32938359,0.00030958,25]
[327891528,1716581450439,-983.53505404,0.00030958,25]
[327891529,1716581450448,-410.11,0.00030958,25]
[327891530,1716581450458,-943.61456884,0.00030958,25]
[327891531,1716581450467,-2323.45220628,0.00030958,25]
[327891532,1716581450476,-2691.80803224,0.00030958,25]
[327891533,1716581450486,-855.94528134,0.00030958,21]
[327891534,1716581450495,-2852.16608171,0.00030958,25]
[327891535,1716581450505,-500.0,0.00030958,2]
[327891536,1716581450514,-269.66301449,0.00030958,2]
[327891537,1716581450524,-155.61513001,0.00030997,14]
[327891538,1716581450535,-151.0,0.00030998,2]
[327891539,1716581450545,-260.453643,0.00030998,2]
[327891540,1716581450556,-260.453643,0.00030998,2]
[327891541,1716581450565,-151.0,0.00030998,2]
[327891542,1716581450574,-181.325575,0.00030998,2]
[327891543,1716581450584,-181.325575,0.00030998,2]
[327891544,1716581450593,-151.0,0.00030999,2]
[327891545,1716581450602,-207.577169,0.00030999,2]
[327891546,1716581450612,-151.0,0.00030999,2]
[327891547,1716581450621,-207.577169,0.00030999,2]
[327891548,1716581450630,-151.0,0.00030999,2]
[327891549,1716581450640,-151.0,0.00030999,2]
[327891550,1716581450650,-158.339831,0.00030999,2]
[327891551,1716581450659,-2512.29,0.00031,2]
[327891552,1716581450668,-1516.96436264,0.00031,2]
[327891553,1716581450677,-61478.27124086,0.00031,2]
[327891554,1716581450785,-8097.27837526,0.00031,2]
[327891555,1716581450910,-203.56634597,0.00031,2]
[327891556,1716581451100,-399.75273429,0.00024657,2]
[327891557,1716581451110,-500.0,0.00024657,2]
[327891558,1716581451120,-500.0,0.00024657,2]
[327891559,1716581451130,-500.0,0.00024931,3]
[327891560,1716581451140,-8855.08286571,0.00025195,3]
[327891561,1716581571925,174.73195156,9.999e-05,2]
[327891562,1716581612614,513.98587396,9.999e-05,2]
[327891563,1716581613666,365.1890674,9.999e-05,2]
[327891564,1716581630140,154.82968734,9.999e-05,2]
[327891565,1716581631659,365.1890674,9.999e-05,2]
[327891566,1716581733282,1985.08383636,0.00019997,11]
[327891568,1716581761087,385.87365126,0.00015,2]
[327891570,1716581853007,992.54191819,0.00019995,11]
[327891571,1716582004585,402.44,0.00010959,2]
[327891572,1716582055055,523.01612629,9.999e-05,2]
[327891575,1716582335164,-818.28585392,0.00016471,2]
[327891576,1716582429116,-254.4842108,0.00016431,2]
[327891577,1716582429156,-2809.9067373,0.00016431,2]
[327891578,1716582429176,-1660.2084783,0.00016432,2]
[327891579,1716582429196,-523.01612629,0.00016469,2]
[327891580,1716582429215,-1862.49592524,0.00016471,2]
[327891581,1716582429234,-180.353169,0.00016473,2]
[327891582,1716582429253,-164.16797252,0.00016743,2]
[327891583,1716582429273,-1092.5363103,0.00016844,2]
[327891584,1716582429291,-2474.7515371,0.00016916,2]
[327891585,1716582429310,-620.9607675,0.00016916,2]
[327891586,1716582429329,-160.8583296,0.00016982,2]
[327891587,1716582429350,-373.1622541,0.00017273,2]
[327891588,1716582429382,-21248.66627784,0.0001808,2]
[327891589,1716582436224,-2322.65418151,0.0001808,2]
[327891590,1716582453094,-388.90728382,0.00018078,2]
[327891593,1716582520103,877.35236253,9.999e-05,2]
[327891595,1716582562108,-3064.3909481,0.00017152,2]
[327891596,1716582562128,-514.8955851,0.00017153,2]
[327891597,1716582562149,-135.34671595,0.00018078,2]
[327891598,1716582562169,-155.08326852,0.00018079,2]
[327891599,1716582562190,-411.44951041,0.00018079,2]
[327891600,1716582562209,-164.16797251,0.00018081,2]
[327891601,1716582562229,-250.36651692,0.0001817,2]
[327891602,1716582562248,-154.82968734,0.00018179,2]
[327891603,1716582562268,-1292.08812748,0.0001818,2]
[327891604,1716582563168,-47924.72473999,0.0001818,2]
[327891605,1716582566130,-18878.74233133,0.0001818,2]
[327891606,1716582566152,-24119.11511109,0.00018181,2]
[327891607,1716582573020,496.27095909,0.00019996,11]
[327891735,1716582638332,-3064.3909481,0.00018242,2]
[327891737,1716582638342,-154.95346446,0.00018243,2]
[327891739,1716582638351,-56172.25252031,0.00018243,2]
[327891741,1716582638360,-24900.0,0.00018244,2]
[327891743,1716582638370,-461.33820943,0.00018618,2]
[327891745,1716582638379,-189.72972499,0.00018718,2]
[327891747,1716582638389,-1572.6965056,0.00019078,2]
[327891749,1716582638398,-365.28454161,0.00019178,2]
[327891751,1716582638407,-377.43349966,0.00019178,2]
[327891753,1716582638416,-432.04096659,0.00019178,2]
[327891755,1716582638425,-500.0,0.00019178,2]
[327891757,1716582638435,-500.0,0.00019178,2]
[327891759,1716582638445,-500.0,0.00019178,2]
[327891761,1716582638454,-742.82559498,0.00019178,2]
[327891764,1716582638464,-742.82559498,0.00019178,2]
[327891767,1716582638474,-500.0,0.00019178,2]
[327891770,1716582638483,-500.0,0.00019178,2]
[327891773,1716582638493,-742.82559498,0.00019178,2]
[327891776,1716582638502,-500.0,0.00019178,2]
[327891779,1716582638511,-500.0,0.00019178,2]
[327891782,1716582638521,-742.82559498,0.00019178,2]
[327891785,1716582638530,-500.0,0.00019178,2]
[327891788,1716582638540,-440.66243265,0.00019178,2]
[327891791,1716582638549,-742.82559498,0.00019178,2]
[327891793,1716582638559,-500.0,0.00019178,2]
[327891795,1716582638568,-500.0,0.00019178,2]
[327891797,1716582638578,-500.0,0.00019178,2]
[327891799,1716582638587,-742.82559498,0.00019178,2]
[327891801,1716582638597,-742.82559498,0.00019178,2]
[327891803,1716582638606,-500.0,0.00019178,2]
[327891805,1716582638616,-500.0,0.00019178,2]
[327891807,1716582638625,-202.32558963,0.00019178,2]
[327891809,1716582638635,-742.82559498,0.00019178,2]
[327891811,1716582638649,-500.0,0.00019178,2]
[327891813,1716582638658,-236.90631712,0.00019178,2]
[327891815,1716582638668,-742.82559498,0.00019178,2]
[327891817,1716582638679,-742.82559498,0.00019178,2]